[Event "Austrian Bundesliga 2023-24"]
[Site "Austria"]
[Date "2024.03.21"]
[Round "8.31"]
[White "Baldauf, Marco"]
[Black "Donchenko, Alexander"]
[Result "0-1"]
[ECO "A05"]
[WhiteElo "2481"]
[BlackElo "2631"]
[Annotator "TA"]
[PlyCount "124"]
[EventDate "2023.10.21"]
[EventType "team-tourn"]
[EventCountry "AUT"]
[SourceTitle "playchess.com"]
[Source "ChessBase"]
[SourceQuality "1"]
[TimeControl "40/5400+30:1800+30"]

{[%evp 35,124,0,0,0,0,0,0,0,0,0,0,0,0,0,0,0,0,-79,-80,-80,-80,-270,-268,-268,-268,-268,-268,-276,-276,-414,-368,-368,-368,-368,-368,-368,-368,-368,-361,-361,-343,-361,-325,-297,-216,-447,-447,-447,-447,-447,-6145,-1257,-447,-447,-447,-447,-447,-447,-447,-447,-447,-447,-447,-447,-434,-29970,-29971,-29971,-29972,-29972,-29973,-29975,-29976,-29976,-29975,-29975,-29975,-29975,-29976,-29975,-29975,-29976,-29977,-29977,-29978,-29978,-29979,-29979,-29978,-29982,-29983]} 1. Nf3 {[%emt 0:00:04]} Nf6 {[%emt 0:00:34]} 2. c4 {[%emt 0:00:16]} g6 {[%emt 0:03:17]} 3. g3 {[%emt 0:00:19]} Bg7 {[%emt 0:01:05]} 4. Bg2 {[%emt 0:00:08]} O-O {[%emt 0:00:26]} 5. O-O {[%emt 0:01:00]} d6 {[%emt 0:00:52]} 6. Nc3 {[%emt 0:00:21]} e5 {[%emt 0:01:00]} 7. d3 {[%emt 0:00:23]} a5 {[%emt 0:02:03]} 8. Rb1 {[%emt 0:07:50]} c6 {[%emt 0:06:36]} 9. h3 {[%emt 0:04:22] A24: English Opening vs King's Indian: Lines without ...Nc6.} Re8 {[%emt 0:05:50]} 10. e4 {[%emt 0:00:05]} h6 {[%emt 0:10:57]} 11. Be3 {[%emt 0:02:37]} Be6 {[%emt 0:00:55]} 12. Qd2 $146 {[%emt 0:09:50]} ({Predecessor:} 12. Qc1 Kh7 13. Rd1 Qe7 14. b3 Na6 15. a3 Bd7 16. Bb6 Nc5 17. b4 axb4 18. axb4 {1-0 Sadewasser,A (2216)-Bloessl,W (2199) Verbandsliga Nord Baden 0910 2009 (3.3)}) 12... Kh7 {[%emt 0:00:26]} 13. Rbd1 {[%emt 0:00:10]} d5 {[%emt 0:13:16]} 14. exd5 {[%emt 0:12:58]} cxd5 {[%emt 0:00:06]} 15. d4 {[%emt 0:00:05]} e4 {[%emt 0:00:23]} 16. Ne5 {[%emt 0:00:07]} Nc6 {[%emt 0:01:02]} 17. b3 {[%emt 0:05:20]} dxc4 {[%emt 0:05:47]} 18. bxc4 {[%emt 0:02:30]} (18. Nxe4 $2 {too greedy.} Nxe4 (18... cxb3 19. Nc5 $15) 19. Bxe4 Nxe5 (19... Bxh3 20. Nxc6 bxc6 21. Bxc6 $11) 20. dxe5 cxb3 $19 (20... Bxh3 21. Qxd8 Raxd8 22. Rxd8 $15) (20... Bxe5 21. bxc4 Qc7 $16)) 18... Nxe5 $1 {[%emt 0:04:14]} 19. dxe5 {[%emt 0:00:03]} Qxd2 $1 {[%emt 0:00:48]} 20. Rxd2 {[%emt 0:00:07]} Nd7 {[%emt 0:00:53]} 21. Nxe4 {[%emt 0:06:14]} Nxe5 {[%emt 0:00:19]} 22. Nd6 {[%emt 0:00:37]} Nxc4 $1 {[%emt 0:01:31]} 23. Nxc4 {[%emt 0:03:39]} Bxc4 {[%emt 0:00:06]} 24. Rc1 {[%emt 0:00:05]} Be6 $1 {[%emt 0:00:47]} 25. Bxb7 {[%emt 0:04:01]} Rad8 {[%emt 0:00:59]} 26. Bg2 {[%emt 0:16:07]} (26. a4 $11) 26... Rxd2 $17 {[%emt 0:09:14]} 27. Bxd2 {[%emt 0:00:02] [#]} a4 $1 {[%emt 0:00:18]} 28. Bc6 $2 {[%emt 0:01:36] [#]} (28. a3 $17 {was forced.}) 28... Rd8 $1 $19 {[%emt 0:00:44]} 29. Bb4 {[%emt 0:08:48]} Rc8 {[%emt 0:03:54]} 30. Ba3 {[%emt 0:06:33]} Bxa2 {[%emt 0:00:59]} 31. Kf1 {[%emt 0:01:50]} ({Much weaker is} 31. Bxa4 Ra8 32. Rd1 Rxa4 $19) 31... Kg8 {[%emt 0:08:29]} 32. h4 {[%emt 0:03:29]} ({Of course not} 32. Bxa4 Ra8 33. h4 Rxa4 $19) (32. Bd7 $142 Rxc1+ 33. Bxc1) 32... Bf8 {[%emt 0:08:09]} 33. Bxa4 {[%emt 0:00:37]} Bc4+ {[%emt 0:00:15]} 34. Rxc4 {[%emt 0:00:04]} Rxc4 {[%emt 0:00:05]} 35. Bxf8 {[%emt 0:00:04]} Kxf8 {[%emt 0:00:07]} 36. Bb3 {[%emt 0:00:13]} Rc7 {[%emt 0:00:34]} 37. Kg2 {[%emt 0:01:07]} Ke7 {[%emt 0:00:08]} 38. Bd5 {[%emt 0:03:29]} Kd6 {[%emt 0:00:16]} 39. Ba8 {[%emt 0:00:04]} Ke5 {[%emt 0:00:31]} 40. f4+ $2 {[%emt 0:00:00]} (40. Bf3) 40... Kd4 $19 {[%emt 0:00:00]} 41. Kf3 {[%emt 0:00:58]} Rc3+ {[%emt 0:13:08]} 42. Kf2 {[%emt 0:00:05]} Rc2+ {[%emt 0:00:05]} 43. Kf3 {[%emt 0:00:04]} f5 {[%emt 0:02:03]} (43... Rc8 $142 44. Bb7 Rc3+ 45. Kf2 Rc2+ 46. Kf3 Rc5) 44. Bb7 $19 {[%emt 0:00:25]} Ra2 {[%emt 0:02:27]} 45. Bc6 {[%emt 0:01:07]} Rb2 {[%emt 0:03:32]} 46. Ba8 {[%emt 0:08:09]} Rb8 {[%emt 0:01:17]} 47. Bc6 {[%emt 0:00:04]} Kc5 {[%emt 0:00:13]} 48. Ba4 {[%emt 0:00:35]} Ra8 {[%emt 0:00:26]} 49. Bd1 {[%emt 0:04:03]} Kd4 {[%emt 0:01:15]} 50. Kf2 {[%emt 0:03:18]} (50. Be2 $19 Ra3+ 51. Kf2) 50... Ra2+ {[%emt 0:00:25]} 51. Kf3 {[%emt 0:00:14]} h5 {[%emt 0:01:32]} 52. Be2 {[%emt 0:00:05]} Ra3+ {[%emt 0:00:38]} 53. Kg2 {[%emt 0:03:00]} Ke4 {[%emt 0:02:15]} 54. Bc4 {[%emt 0:00:05]} Rc3 {[%emt 0:00:34]} 55. Bf7 {[%emt 0:00:05]} Rc2+ {[%emt 0:00:36]} 56. Kh3 {[%emt 0:00:47]} Rc6 {[%emt 0:00:06]} 57. Kg2 {[%emt 0:01:53]} Rd6 {[%emt 0:00:14]} 58. Be8 {[%emt 0:01:10]} Ke3 {[%emt 0:00:07]} 59. Bf7 {[%emt 0:00:05]} Rd2+ {[%emt 0:00:35]} 60. Kg1 {[%emt 0:00:45]} Kf3 {[%emt 0:00:37]} 61. Bxg6 {[%emt 0:00:07]} Kxg3 {[%emt 0:00:27]} 62. Bxh5 {[%emt 0:00:06]} Kxh4 {[%emt 0:00:32]} 0-1

[Event "Austrian Bundesliga 2023-24"]
[Site "Austria"]
[Date "2024.03.21"]
[Round "8.32"]
[White "Bluebaum, Matthias"]
[Black "Prusikin, Michael"]
[Result "1/2-1/2"]
[ECO "E04"]
[WhiteElo "2655"]
[BlackElo "2508"]
[Annotator "TA"]
[PlyCount "69"]
[EventDate "2023.10.21"]
[EventType "team-tourn"]
[EventCountry "AUT"]
[SourceTitle "playchess.com"]
[Source "ChessBase"]
[SourceQuality "1"]
[TimeControl "40/5400+30:1800+30"]

{[%evp 14,69,0,0,0,0,0,0,0,5,0,0,0,0,0,0,0,-3,-4,0,0,0,0,-54,-56,-51,-48,-56,-61,-55,0,0,0,-8,0,-131,-150,-402,-405,-443,-402,-421,-419,-906,-893,-29991,-29977,-29992,-5047,-1446,-4133,-837,0,-450,0,-716,0,-422]} 1. d4 {[%emt 0:00:04]} d5 {[%emt 0:00:04]} 2. c4 {[%emt 0:00:12]} e6 {[%emt 0:00:04]} 3. Nf3 {[%emt 0:00:20]} Nf6 {[%emt 0:00:07]} 4. g3 {[%emt 0:00:08]} dxc4 {[%emt 0:00:09]} 5. Bg2 {[%emt 0:00:11]} c5 {[%emt 0:00:05]} 6. O-O {[%emt 0:02:25]} Nc6 {[%emt 0:00:06]} 7. Na3 {[%emt 0:01:55]} cxd4 {[%emt 0:00:23]} 8. Nxc4 {[%emt 0:00:06]} Bc5 {[%emt 0:03:53]} 9. a3 {[%emt 0:00:35]} a5 {[%emt 0:02:31]} 10. b3 {[%emt 0:00:36]} Nd7 {[%emt 0:11:16]} 11. Bb2 {[%emt 0:09:19]} e5 {[%emt 0:00:39]} 12. b4 {[%emt 0:15:24]} axb4 {[%emt 0:00:34]} 13. axb4 {[%emt 0:00:04]} Rxa1 {[%emt 0:00:09]} 14. Qxa1 {[%emt 0:00:36]} Nxb4 {[%emt 0:08:34]} 15. Ncxe5 {[%emt 0:00:11]} Nxe5 {[%emt 0:00:24]} 16. Nxe5 {[%emt 0:00:04]} O-O {[%emt 0:01:29]} 17. Nf3 {[%emt 0:10:28][%cal Of1c1]} Nc6 {[%emt 0:10:37]} 18. e3 {[%emt 0:07:30]} dxe3 $15 {[%emt 0:09:12]} 19. Bxg7 {[%emt 0:01:31]} exf2+ {[%emt 0:00:07]} 20. Kh1 {[%emt 0:00:03]} Re8 {[%emt 0:00:00] Strongly threatening ...Re6.} 21. Bh8 {[%emt 0:00:00] [#]} f6 $1 {[%emt 0:01:08]} 22. Bxf6 $11 {[%emt 0:00:00]} Qd3 $36 {[%emt 0:06:54][%mdl 2048] next ...Bg4 is good for Black. Black fights for an advantage.} 23. Ng5 {[%emt 0:03:18] Really sharp!} Nb4 {[%emt 0:10:22] Prevents Qa2+. ...Bd7 would now be deadly.} 24. Qc1 {[%emt 0:12:59] [#]} (24. Bc3 $11 Qc4 25. Bxb4 Bxb4 26. Qb1) 24... b6 $1 $17 {[%emt 0:04:36][%cal Od3f1] ...Qxf1+! is the strong threat.} 25. h4 $2 {[%emt 0:01:49]} (25. Qf4 Re1) (25. Bc3 $17 Na2 26. Qf4) 25... Ba6 {[%emt 0:05:18]} (25... Qxg3 $2 26. Qc4+ $18) 26. Kh2 {[%emt 0:03:33]} ({Not} 26. Qf4 $2 Nd5 27. Qc1 Nxf6 $19) 26... h6 {[%emt 0:11:35]} 27. Nh3 {[%emt 0:16:46]} Qg6 {[%emt 0:01:33][%csl LRf1,LRf6]} 28. Bc3 {[%emt 0:03:30]} (28. Qf4 $142 Rf8 29. Rxf2 Bxf2 30. Qxf2 Qxf6 (30... Rxf6 $2 31. Nf4 $19) 31. Nf4) 28... Re3 $19 {[%emt 0:06:00]} 29. Bxb4 {[%emt 0:00:33]} Qxg3+ {[%emt 0:00:07]} 30. Kh1 {[%emt 0:00:02]} Bxf1 {[%emt 0:01:41]} (30... Bb7 $142 31. Qc4+ Kh8 32. Bc3+ Rxc3 33. Qxc3+ Qxc3 34. Nf4 Qg3 35. Ng6+ Kg7 (35... Qxg6 $2 {gets mated.} 36. Rxf2 Bxf2 37. Bxb7 Qg1#) 36. Rxf2 Qh3+ 37. Kg1 Qxg2#) 31. Bxf1 {[%emt 0:01:01]} Qf3+ {[%emt 0:00:48]} 32. Kh2 {[%emt 0:00:18]} Qg3+ {[%emt 0:00:43]} 33. Kh1 {[%emt 0:00:01]} Qf3+ {[%emt 0:05:02]} (33... Qxh4 34. Qc4+ Qxc4 35. Bxc4+ Kh7 36. Bxc5 Rxh3+ 37. Kg2 $17) (33... Bxb4 $142 34. Qc4+ Kh7 35. Qf7+ Kh8 36. Qf6+ Qg7 37. Qxg7+ Kxg7) 34. Kh2 {[%emt 0:00:02]} Qg3+ {[%emt 0:00:38]} 35. Kh1 {[%mdl 32768] Weighted Error Value: White=0.91/Black=0.97.  Loses game:     	White=2     	---        Mistake:       	White=3     	Black=1      Inaccurate:     	White=1     	Black=1      OK:         	White=6     	Black=10     Best:        	White=5     	Black=4      Strong:       	---       	Black=1     . An unexpected result.} 1/2-1/2

[Event "Austrian Bundesliga 2023-24"]
[Site "Austria"]
[Date "2024.03.21"]
[Round "8.33"]
[White "Berchtenbreiter, Maximilian"]
[Black "Svane, Rasmus"]
[Result "1/2-1/2"]
[ECO "B19"]
[WhiteElo "2486"]
[BlackElo "2623"]
[Annotator "TA"]
[PlyCount "99"]
[EventDate "2023.10.21"]
[EventType "team-tourn"]
[EventCountry "AUT"]
[SourceTitle "playchess.com"]
[Source "ChessBase"]
[SourceQuality "1"]
[TimeControl "40/5400+30:1800+30"]

{[%evp 13,99,16,16,0,0,0,0,0,0,-17,0,-14,0,0,-9,-15,-16,-17,-6,0,0,-13,0,-27,-5,-41,-5,-27,-35,-52,-52,-43,-47,-217,-193,-187,-230,-235,-190,-222,-231,-280,-138,-131,-115,-108,-113,-113,-125,-104,-99,-98,-94,-94,-97,-97,-97,-227,-185,-193,-191,-177,-179,-182,-179,-207,-216,-226,-207,-262,0,0,0,0,0,0,0,0,0,2,8,0,0,0,0,0,0,0]} 1. e4 {[%emt 0:00:07]} c6 {[%emt 0:01:03]} 2. d4 {[%emt 0:00:57]} d5 {[%emt 0:00:08]} 3. Nc3 {[%emt 0:01:40]} dxe4 {[%emt 0:00:47]} 4. Nxe4 {[%emt 0:00:12]} Bf5 {[%emt 0:07:44]} 5. Ng3 {[%emt 0:00:05]} Bg6 {[%emt 0:00:06]} 6. h4 {[%emt 0:02:25]} h6 {[%emt 0:00:08]} 7. Nf3 {[%emt 0:02:49]} Nd7 {[%emt 0:00:26]} 8. a4 {[%emt 0:10:36][%cal Ba2a4,Ba4a5][%mdl 32]} e6 {[%emt 0:03:20]} 9. Bd3 {[%emt 0:09:12]} Bxd3 {[%emt 0:00:06]} 10. Qxd3 {[%emt 0:00:03]} Ngf6 {[%emt 0:01:07]} 11. a5 {[%emt 0:07:01]} Bd6 {[%emt 0:07:22]} 12. Ne4 {[%emt 0:13:52]} Nxe4 {[%emt 0:00:19]} 13. Qxe4 {[%emt 0:00:02]} O-O {[%emt 0:05:55]} 14. a6 {[%emt 0:11:26]} Qc7 {[%emt 0:15:22]} 15. axb7 {[%emt 0:02:48]} Qxb7 {[%emt 0:00:04]} 16. O-O {[%emt 0:01:28]} Nf6 {[%emt 0:08:42]} 17. Qe2 {[%emt 0:01:36]} c5 {[%emt 0:02:06]} 18. Be3 {[%emt 0:08:10]} Rfc8 {[%emt 0:19:51]} 19. Qa6 {[%emt 0:08:59]} Qc7 {[%emt 0:09:14]} (19... Qb8 $5) 20. Ra5 {[%emt 0:04:58]} c4 {[%emt 0:01:50]} 21. Rb5 {[%emt 0:02:38]} Rab8 {[%emt 0:02:28]} 22. Rxb8 {[%emt 0:02:32]} Rxb8 {[%emt 0:00:09]} 23. Nd2 $2 {[%emt 0:02:07]} (23. Qa2 $15) 23... Rxb2 $19 {[%emt 0:03:43]} 24. Nxc4 {[%emt 0:04:04]} Bh2+ {[%emt 0:00:05]} (24... Rxc2 $2 25. Nxd6 Rc6 26. Nb5 Rxa6 27. Nxc7 $18) 25. Kh1 {[%emt 0:00:01]} Rxc2 {[%emt 0:00:23]} 26. Na3 {[%emt 0:00:15]} Rc6 {[%emt 0:01:19]} 27. Qa4 {[%emt 0:01:53]} Bd6 {[%emt 0:01:29]} (27... a6 $19 {and Black stays clearly on top. ...Nd5 would now be deadly.} 28. g3 Bxg3 (28... Ng4 $2 29. d5 $18) 29. fxg3 Rc3 (29... Qxg3 30. Qxc6 Qh3+ 31. Kg1 $17)) 28. Nb5 $17 {[%emt 0:00:14]} Qb7 {[%emt 0:00:45] Threatens to win with ...Be7.} 29. d5 {[%emt 0:01:21]} Nxd5 {[%emt 0:01:57]} 30. Nxd6 {[%emt 0:01:50]} Rxd6 {[%emt 0:00:06]} 31. Qxa7 {[%emt 0:00:00]} Qb2 {[%emt 0:03:12]} (31... Qb3 {simplifies} 32. Kh2 Rd8 33. Rc1 Nxe3 34. Qxe3 Qxe3 35. fxe3 Rd3) 32. Bd4 {[%emt 0:00:21]} Qe2 $40 {[%emt 0:02:42][%mdl 128] Black goes for the king.} (32... Qb5 {simplifies} 33. Ra1 Rd7 34. Qa6 Qxa6 35. Rxa6 Nb4) 33. Qb8+ {[%emt 0:00:08]} Kh7 {[%emt 0:00:05]} 34. Kg1 {[%emt 0:01:08]} Rd7 {[%emt 0:02:12]} 35. Qe8 {[%emt 0:00:28]} (35. Qe5 $17 Qg4 36. f3) 35... Re7 {[%emt 0:00:33]} 36. Qf8 {[%emt 0:00:04]} Qg4 {[%emt 0:00:18]} 37. Be5 {[%emt 0:00:54]} f6 $1 {[%emt 0:00:54]} (37... Qxh4 38. Qxg7#) 38. Bg3 {[%emt 0:00:05] [#]} f5 $1 {[%emt 0:00:46]} 39. Bd6 {[%emt 0:00:46]} Rd7 {[%emt 0:00:21][%cal Od5c3] White must now prevent ...Nc3!} 40. Re1 {[%emt 0:00:00]} Nc3 {[%emt 0:00:00] aiming for ...Ne2+.} (40... Qxh4 41. Rxe6 Qg5 42. Qc8 $15) 41. Rxe6 {[%emt 0:03:47] [#]} Rb7 $2 {[%emt 0:13:33]} (41... Qxh4 42. Qxf5+ g6 43. Qxg6+ Kh8 44. Re8#) (41... Nb5 $1 $19 {[%cal Rb5d4]} 42. Bg3 f4 43. Rxh6+ gxh6 44. Qxf4 Qxf4 45. Bxf4 Nc3) 42. Re1 $1 $11 {[%emt 0:13:51] The position is equal.} Rb5 {[%emt 0:08:45][%cal Og4d4]} (42... Qxh4 $2 {is the wrong capture.} 43. Qxf5+ g6 44. Qf3 $18 (44. Qc8 Ne2+ 45. Kf1 Ng3+ 46. fxg3 Rf7+ 47. Kg1 Qd4+ 48. Kh2 Qxd6 $11) (44. Qc8 Ne2+ 45. Kf1 Ng3+ 46. fxg3 Qh1+ 47. Kf2 Rb2+ 48. Re2 Rxe2+ 49. Kxe2 Qxg2+ 50. Ke3 Qg1+ 51. Ke2 Qg2+ 52. Ke3 Qg1+ 53. Ke4 Qg2+ 54. Ke3 $11)) 43. Qe7 {[%emt 0:10:30] Strongly threatening Be5.} Rb6 {[%emt 0:07:44]} 44. Qe5 {[%emt 0:02:34]} Ne2+ {[%emt 0:01:52]} 45. Kf1 {[%emt 0:02:13]} Nd4 {[%emt 0:00:47]} 46. Bc5 {[%emt 0:00:34][%csl LRb6,LRd4]} Nc6 {[%emt 0:00:42]} 47. Qd5 {[%emt 0:00:34]} Nb4 {[%emt 0:00:42]} 48. Bxb4 {[%emt 0:00:39]} Rxb4 {[%emt 0:00:16]} 49. g3 {[%emt 0:00:07]} Qc4+ {[%emt 0:00:43]} 50. Qxc4 {[%emt 0:00:05] Black had all chances to win.   Weighted Error Value: White=0.18 (very precise) /Black=0.15 (very precise) .  Loses game:     	White=1     	---        Missed win:     	---       	Black=1      Mistake:       	White=1     	Black=1      Inaccurate:     	White=2     	Black=1      OK:         	White=15    	Black=17     Best:        	White=4     	Black=2      Strong:       	White=1     	Black=2} 1/2-1/2

[Event "Austrian Bundesliga 2023-24"]
[Site "Austria"]
[Date "2024.03.21"]
[Round "8.34"]
[White "Svane, Frederik"]
[Black "Hess, Max"]
[Result "1-0"]
[ECO "D36"]
[WhiteElo "2617"]
[BlackElo "2392"]
[Annotator "TA"]
[PlyCount "93"]
[EventDate "2023.10.21"]
[EventType "team-tourn"]
[EventCountry "AUT"]
[SourceTitle "playchess.com"]
[Source "ChessBase"]
[SourceQuality "1"]
[TimeControl "40/5400+30:1800+30"]

{[%evp 20,93,19,20,20,18,22,23,30,26,17,8,14,9,12,8,29,0,1,-27,-29,-65,-64,-68,-69,-58,-62,-74,-70,-114,-99,-120,285,310,297,267,551,541,518,235,247,-90,85,0,0,0,18,12,15,0,31,0,0,0,10,0,0,0,6,8,157,167,602,602,729,717,711,702,719,706,1097,988,1106,543,648,636]} 1. d4 {[%emt 0:00:05]} Nf6 {[%emt 0:01:01]} 2. c4 {[%emt 0:00:22]} e6 {[%emt 0:00:07]} 3. Nc3 {[%emt 0:00:06]} d5 {[%emt 0:00:08]} 4. cxd5 {[%emt 0:00:05]} exd5 {[%emt 0:00:05]} 5. Bg5 {[%emt 0:00:05]} c6 {[%emt 0:00:34]} 6. Qc2 {[%emt 0:00:09]} h6 {[%emt 0:02:38]} 7. Bh4 {[%emt 0:00:10]} Be7 {[%emt 0:00:06]} 8. e3 {[%emt 0:00:10]} O-O {[%emt 0:00:41]} 9. Bd3 {[%emt 0:00:06]} Re8 {[%emt 0:03:50]} 10. Nge2 {[%emt 0:00:12]} Nbd7 {[%emt 0:02:11][%cal Bb8d7,Bd7f8,Bf8e6,Be6g5][%mdl 32]} 11. h3 {[%emt 0:00:09]} Nf8 {[%emt 0:05:14]} 12. Bg3 {[%emt 0:00:21]} Bd6 {[%emt 0:02:08]} 13. O-O {[%emt 0:00:30]} Bxg3 {[%emt 0:06:53] White has an edge.} 14. Nxg3 {[%emt 0:00:35]} Qd6 {[%emt 0:00:46]} 15. Nb1 {[%emt 0:16:57]} Ne6 {[%emt 0:07:16]} 16. Nd2 {[%emt 0:04:28]} Ng5 {[%emt 0:07:22][%cal Oe8e3]} 17. Rfe1 {[%emt 0:02:57]} Qe7 {[%emt 0:08:55]} 18. f3 {[%emt 0:14:36]} Bd7 {[%emt 0:07:16]} 19. e4 {[%emt 0:26:38]} dxe4 {[%emt 0:03:56]} 20. fxe4 {[%emt 0:03:04]} Qd6 {[%emt 0:20:40]} 21. Ne2 {[%emt 0:00:33] [#]} Bxh3 $1 {[%emt 0:01:33]} 22. gxh3 {[%emt 0:10:46]} Nxh3+ {[%emt 0:00:05]} 23. Kg2 {[%emt 0:00:36]} Qd7 {[%emt 0:04:12][%mdl 1024] Black has strong compensation.} 24. Nf1 {[%emt 0:11:10]} Qg4+ {[%emt 0:01:15]} 25. Nfg3 {[%emt 0:01:35] Threatens to win with Rh1.} h5 $2 {[%emt 0:03:38][%mdl 8192]} (25... Ng5 $1 $17 {( -> ...Qh3+)} 26. Ng1 Nh5) 26. Rh1 $18 {[%emt 0:01:33] Repels} Ng5 {[%emt 0:01:42][%cal Rf6e4]} 27. Raf1 $1 {[%emt 0:00:07]} Nd5 $2 {[%emt 0:05:30]} (27... Ngxe4 28. Rf4 Qg5 29. Bxe4 $18) (27... Ne6) 28. exd5 {[%emt 0:03:34]} h4 {[%emt 0:00:01][%cal Oe8e2] [#]} 29. Qb3 {[%emt 0:01:36]} g6 {[%emt 0:01:47] [#] Against Bf5. Strongly threatening ...Re3.} (29... Re3 $2 30. Bh7+ (30. Qxb7 $2 Rxe2+ 31. Rf2 Qxg3+ 32. Kf1 Qxf2#) 30... Nxh7 31. Qxe3 $18) 30. Bc4 $2 {[%emt 0:01:30]} cxd5 {[%emt 0:00:33] [#]} (30... b5 $1 $17 {[%cal Rb5c4] and life is bright.} 31. Rf4 (31. Bd3 $2 Re3 $19) 31... Rxe2+ 32. Bxe2 Qxf4) 31. Rxh4 $1 Qxh4 $11 {[%emt 0:00:20]} 32. Bxd5 {[%emt 0:00:44]} Re7 {[%emt 0:01:01] White must now prevent ...Rae8.} 33. Nf4 {[%emt 0:00:58][%cal Be2f4,Bf4h5,Bh5f6][%mdl 32]} (33. Bxb7 $2 Rae8 34. Bf3 Re3 $19) 33... Kg7 {[%emt 0:01:31] [#]} 34. Nfh5+ $1 {[%emt 0:00:26]} Kg8 {[%emt 0:00:47]} (34... Kh8 35. Nf4) 35. Nf6+ {[%emt 0:00:35]} (35. Bxb7 $2 Rb8 36. Nf6+ Kf8 $19 (36... Kg7 $2 37. Nfh5+ Kg8 38. Rh1 $19)) (35. Qd3 $5 gxh5 36. Rh1 $16 (36. Qg6+ Kf8 $11)) 35... Kg7 {[%emt 0:00:12]} 36. Nfh5+ {[%emt 0:00:19] A dynamic duo of knights.} Kg8 {[%emt 0:00:34]} 37. Nf6+ {[%emt 0:00:38]} (37. Bxb7 $2 Rb8 38. Nf6+ Kf8 $19 (38... Kg7 $2 39. Nfh5+ Kg8 40. Nf6+ Kf8 41. Qa3 $19)) 37... Kg7 {[%emt 0:00:04]} 38. Qa3 {[%emt 0:00:32]} (38. Bxb7 $2 Rh8 $19) 38... Qh3+ {[%emt 0:01:38]} 39. Kg1 {[%emt 0:00:01] Nfh5+ would now be deadly. Really sharp!} Rh8 {[%emt 0:00:39] [#]} 40. Nfh5+ $1 $16 {[%emt 0:00:00]} (40. Qxe7 $2 Qh2#) ({Don't take} 40. Ngh5+ $6 Kf8 41. Qxh3 Nxh3+ 42. Kg2 Ng5 $11) 40... Rxh5 $2 {[%emt 0:00:00]} (40... Kf8) 41. Nxh5+ $18 {[%emt 0:02:25] White is clearly winning.} (41. Qxe7 $2 Qh2#) 41... Qxh5 {[%emt 0:07:24]} 42. Qxe7 {[%emt 0:01:59]} Qg4+ {[%emt 0:01:03]} 43. Bg2 {[%emt 0:00:41]} Qxd4+ {[%emt 0:00:21]} 44. Rf2 {[%emt 0:00:10]} Qd1+ {[%emt 0:01:05]} 45. Kh2 {[%emt 0:00:20]} Qd4 {[%emt 0:02:09]} 46. Qe1 {[%emt 0:00:43]} Qh4+ {[%emt 0:01:39]} 47. Kg1 {[%emt 0:00:34] Weighted Error Value: White=0.57/Black=0.59.  Loses game:     	---       	Black=1      Missed win:     	White=1     	---        Mistake:       	White=2     	Black=4      Inaccurate:     	White=5     	Black=1      OK:         	White=7     	Black=9      Best:        	White=4     	Black=1      Strong:       	White=2     	---        Brilliant:      	---       	Black=1} 1-0